fUSD/lending_fUSD_20260227
["ID","MTS","AMOUNT","RATE_DAILY","PERIOD"]
[406845423,1772224277890,-500.0,0.00046279,120]
[406845424,1772224277899,-500.0,0.00046279,120]
[406845425,1772224277908,-500.0,0.00046279,120]
[406845426,1772224277917,-500.0,0.00046279,120]
[406845427,1772224277927,-500.0,0.00046279,120]
[406845428,1772224277936,-500.0,0.00046279,120]
[406845429,1772224277946,-587.28904817,0.00046279,120]
[406845430,1772224277955,-500.0,0.00046279,120]
[406845431,1772224277964,-523.78849002,0.00046279,120]
[406845432,1772224277974,-500.0,0.00046279,120]
[406845433,1772224277983,-511.00546954,0.00046279,120]
[406845434,1772224277993,-500.0,0.00046279,120]
[406845435,1772224278003,-500.0,0.00046279,120]
[406845436,1772224278012,-500.0,0.00046279,120]
[406845437,1772224278021,-500.0,0.00046279,120]
[406845438,1772224278030,-500.0,0.00046279,120]
[406845439,1772224278038,-552.83146737,0.00046279,120]
[406845440,1772224278047,-500.0,0.00046279,120]
[406845441,1772224278056,-500.0,0.00046279,120]
[406845442,1772224278064,-500.0,0.00046279,120]
[406845443,1772224278073,-500.0,0.00046279,120]
[406845444,1772224278084,-500.0,0.00046279,120]
[406845445,1772224278093,-500.0,0.00046279,120]
[406845446,1772224278102,-500.0,0.00046279,120]
[406845447,1772224278111,-500.0,0.00046279,120]
[406845448,1772224278122,-500.0,0.00046279,120]
[406845449,1772224278134,-500.0,0.00046279,120]
[406845450,1772224278143,-500.0,0.00046279,120]
[406845451,1772224278152,-500.0,0.00046279,120]
[406845452,1772224278161,-500.0,0.00046279,120]
[406845453,1772224278172,-500.0,0.00046279,120]
[406845454,1772224278181,-500.0,0.00046279,120]
[406845455,1772224278190,-500.0,0.00046279,120]
[406845456,1772224278200,-500.0,0.00046279,120]
[406845457,1772224278210,-500.0,0.00046279,120]
[406845458,1772224278218,-355.29725917,0.00046279,120]
[406845459,1772224278228,-500.0,0.00046279,120]
[406845460,1772224278237,-500.0,0.00046279,120]
[406845461,1772224278245,-4000.0,0.00046279,120]
[406845462,1772224278255,-10000.0,0.00046279,120]
[406845463,1772224278263,-6000.0,0.00046279,120]
[406845464,1772224278272,-10683.7621,0.00046279,120]
[406845465,1772224278281,-50000.0,0.00046279,50]
[406845466,1772224278290,-50000.0,0.00046279,51]
[406845467,1772224278299,-50000.0,0.00046279,52]
[406845468,1772224278309,-50000.0,0.00046279,53]
[406845469,1772224278318,-50000.0,0.00046279,54]
[406845470,1772224278326,-50000.0,0.00046279,55]
[406845471,1772224278335,-50000.0,0.00046279,56]
[406845472,1772224278344,-50000.0,0.00046279,57]
[406845473,1772224278352,-50000.0,0.00046279,58]
[406845474,1772224278361,-50000.0,0.00046279,59]
[406845475,1772224278370,-500.0,0.00046279,120]
[406845476,1772224278379,-500.0,0.00046279,120]
[406845477,1772224278388,-500.0,0.00046279,120]
[406845478,1772224278397,-500.0,0.00046279,120]
[406845479,1772224278406,-500.0,0.00046279,120]
[406845480,1772224278416,-500.0,0.00046279,120]
[406845481,1772224278425,-500.0,0.00046279,120]
[406845482,1772224278434,-500.0,0.00046279,120]
[406845483,1772224278443,-500.0,0.00046279,120]
[406845484,1772224278455,-465.16538167,0.00046279,120]
[406845485,1772224278463,-20035.82141157,0.00046279,10]
[406845486,1772224278472,-1031.0261322,0.00046279,120]
[406845487,1772224278481,-500.0,0.00046279,120]
[406845488,1772224278490,-315.59062735,0.00046279,120]
[406845489,1772224278499,-500.0,0.00046279,120]
[406845490,1772224278508,-500.0,0.00046279,120]
[406845491,1772224278517,-500.0,0.00046279,120]
[406845492,1772224278527,-536.56439327,0.00046279,120]
[406845493,1772224278536,-500.0,0.00046279,120]
[406845494,1772224278545,-500.0,0.00046279,120]
[406845495,1772224278554,-500.0,0.00046279,120]
[406845496,1772224278563,-500.0,0.00046279,120]
[406845497,1772224278572,-437.49953337,0.00046279,120]
[406845498,1772224278581,-192.03851934,0.00046279,120]
[406845499,1772224278590,-500.0,0.00046279,120]
[406845500,1772224278599,-500.0,0.00046279,120]
[406845501,1772224278608,-500.0,0.00046279,120]
[406845502,1772224278618,-486.38408511,0.00046279,120]
[406845503,1772224278627,-500.0,0.00046279,120]
[406845504,1772224278636,-500.0,0.00046279,120]
[406845505,1772224278645,-500.0,0.00046279,120]
[406845506,1772224278655,-500.0,0.00046279,120]
[406845507,1772224278664,-500.0,0.00046279,120]
[406845508,1772224278672,-500.0,0.00046279,120]
[406845509,1772224278682,-500.0,0.00046279,120]
[406845510,1772224278691,-500.0,0.00046279,120]
[406845511,1772224278702,-500.0,0.00046279,120]
[406845512,1772224278711,-500.0,0.00046279,120]
[406845513,1772224278720,-500.0,0.00046279,120]
[406845514,1772224278730,-357.022282,0.00046279,120]
[406845515,1772224278739,-580.36179086,0.00046279,120]
[406845516,1772224278748,-500.0,0.00046279,120]
[406845517,1772224278757,-500.0,0.00046279,120]
[406845518,1772224278766,-500.0,0.00046279,120]
[406845519,1772224278775,-500.0,0.00046279,120]
[406845520,1772224278784,-500.0,0.00046279,120]
[406845521,1772224278793,-500.0,0.00046279,120]
[406845522,1772224278803,-190.95516903,0.00046279,120]
[406845523,1772224278812,-950.0,0.00046279,120]
[406845524,1772224278821,-500.0,0.00046279,120]
[406845525,1772224278830,-500.0,0.00046279,120]
[406845526,1772224278839,-500.0,0.00046279,120]
[406845527,1772224278848,-500.0,0.00046279,120]
[406845528,1772224278857,-500.0,0.00046279,120]
[406845529,1772224278866,-5000.0,0.00046279,31]
[406845530,1772224278875,-500.0,0.00046279,120]
[406845531,1772224278884,-500.0,0.00046279,120]
[406845532,1772224278893,-500.0,0.00046279,120]
[406845533,1772224278902,-500.0,0.00046279,120]
[406845534,1772224278912,-500.0,0.00046279,120]
[406845535,1772224278921,-520.15907507,0.00046279,120]
[406845536,1772224278930,-2002.2,0.00046279,60]
[406845537,1772224278940,-500.0,0.00046279,120]
[406845538,1772224279038,-501.36353657,0.00046279,120]
[406845539,1772224279048,-155.0,0.00046279,2]
[406845540,1772224279057,-150.0,0.00046279,120]
[406845541,1772224279066,-2037.30262967,0.00046279,5]
[406845542,1772224279076,-627.97,0.00046279,120]
[406845543,1772224279085,-506.32058647,0.00046279,2]
[406845544,1772224279094,-500.0,0.00046279,5]
[406845545,1772224279103,-500.0,0.00046279,5]
[406845546,1772224279112,-500.0,0.00046279,5]
[406845547,1772224279126,-500.0,0.00046279,5]
[406845548,1772224279135,-500.0,0.00046279,5]
[406845549,1772224279144,-500.0,0.00046279,5]
[406845550,1772224279153,-500.0,0.00046279,5]
[406845551,1772224279164,-500.0,0.00046279,5]
[406845552,1772224279174,-500.0,0.00046279,5]
[406845553,1772224279184,-500.0,0.00046279,5]
[406845554,1772224279196,-5000.0,0.00046279,30]
[406845555,1772224279206,-1681.23,0.00046279,120]
[406845556,1772224279216,-1681.23,0.00046279,120]
[406845557,1772224279225,-1681.23,0.00046279,120]
[406845558,1772224279234,-1681.23,0.00046279,120]
[406845559,1772224279244,-1681.23,0.00046279,120]
[406845560,1772224279253,-1681.23,0.00046279,120]
[406845561,1772224279262,-1681.23,0.00046279,120]
[406845562,1772224279271,-1681.23,0.00046279,120]
[406845563,1772224279280,-1681.23,0.00046279,120]
[406845564,1772224279289,-1681.23,0.00046279,120]
[406845565,1772224279298,-1681.23,0.00046279,120]
[406845566,1772224279307,-1681.23,0.00046279,120]
[406845567,1772224279315,-1681.23,0.00046279,120]
[406845568,1772224279325,-1681.23,0.00046279,120]
[406845569,1772224279334,-1681.23,0.00046279,120]
[406845570,1772224279343,-1681.23,0.00046279,120]
[406845571,1772224279352,-1681.23,0.00046279,120]
[406845572,1772224279362,-1681.23,0.00046279,120]
[406845573,1772224279371,-1681.23,0.00046279,120]
[406845574,1772224279380,-1681.23,0.00046279,120]
[406845575,1772224279391,-1681.23,0.00046279,120]
[406845576,1772224279400,-1681.23,0.00046279,120]
[406845577,1772224279409,-1681.23,0.00046279,120]
[406845578,1772224279419,-1681.27594437,0.00046279,120]
[406845579,1772224279428,-916.92,0.000463,30]
[406845580,1772224279438,-814.53881766,0.000463,2]
[406845581,1772224279447,-161.79712688,0.0004635,30]
[406845582,1772224279456,-150.0,0.0004635,30]
[406845583,1772224279465,-150.0,0.0004635,30]
[406845584,1772224279475,-445.25,0.00046444,30]
[406845585,1772224279485,-1714.5594,0.00046491,2]
[406845586,1772224279494,-1229.85,0.000465,120]
[406845587,1772224279503,-153.0,0.000465,120]
[406845588,1772224279512,-150.0,0.00046718,30]
[406845589,1772224279523,-2330.6993,0.00046731,2]
[406845590,1772224279533,-1040.2,0.00046747,120]
[406845591,1772224279542,-848.0,0.00046754,16]
[406845592,1772224279551,-497.04,0.000468,120]
[406845593,1772224279560,-164329.0,0.00046806,60]
[406845594,1772224279569,-1000.0,0.00046817,120]
[406845595,1772224279579,-1000.0,0.00046817,120]
[406845596,1772224279588,-1000.0,0.00046817,120]
[406845597,1772224279597,-727.7,0.000469,14]
[406845598,1772224279606,-50000.0,0.00047,80]
[406845599,1772224279615,-663.69056,0.00047,120]
[406845600,1772224279625,-160.0,0.00047073,16]
[406845601,1772224279634,-150.0,0.00047086,30]
[406845602,1772224279643,-2330.6993,0.00047189,2]
[406845603,1772224279652,-155.0,0.000474,120]
[406845604,1772224279661,-777.2,0.000474,14]
[406845605,1772224279670,-849.15,0.000474,14]
[406845606,1772224279680,-363.56845721,0.00047404,120]
[406845607,1772224279688,-510.0,0.00047445,31]
[406845608,1772224279698,-150.0,0.00047454,30]
[406845609,1772224279707,-20000.0,0.000475,120]
[406845610,1772224279716,-2000.0,0.000475,2]
[406845611,1772224279726,-1040.2,0.00047573,120]
[406845612,1772224279735,-150.37,0.00047603,120]
[406845613,1772224279743,-1714.5594,0.00047624,2]
[406845614,1772224279752,-2330.6993,0.00047647,2]
[406845615,1772224279761,-152.0,0.00047715,4]
[406845616,1772224279770,-500.0,0.00047817,120]
[406845617,1772224279779,-200.0,0.00047817,120]
[406845618,1772224279788,-150.0,0.00047821,30]
[406845619,1772224279798,-533.0,0.00047926,90]
[406845620,1772224279807,-532.113379,0.0004797,3]
[406845621,1772224279816,-400.0,0.0004797,3]
[406845622,1772224279825,-2127.62,0.00047991,30]
[406845623,1772224279835,-50000.0,0.00048,90]
[406845624,1772224279844,-10000.0,0.00048,120]
[406845625,1772224279853,-231.3,0.0004804,120]
[406845626,1772224279863,-2330.6993,0.00048105,2]
[406845627,1772224279872,-152.8213546,0.00048152,120]
[406845628,1772224279881,-150.0,0.00048189,30]
[406845629,1772224279891,-164329.0,0.0004821,60]
[406845630,1772224279900,-533.0,0.00048329,90]
[406845631,1772224279909,-150.0,0.00048374,30]
[406845632,1772224279918,-1056.07235092,0.00048374,30]
[406845633,1772224279928,-1040.2,0.000484,120]
[406845634,1772224279937,-497.04,0.00048432,120]
[406845635,1772224279947,-70340.65046811,0.000485,120]
[406845636,1772224279957,-150.0,0.00048557,30]
[406845637,1772224279967,-777.2,0.000487,14]
[406845638,1772224279976,-849.15,0.000487,14]
[406845639,1772224279985,-153.0,0.000487,120]
[406845640,1772224279994,-1098.52918604,0.00048766,60]
[406845641,1772224280004,-13997.18,0.00048767,120]
[406845642,1772224280015,-13997.18,0.00048767,120]
[406845643,1772224280024,-13997.18,0.00048767,120]
[406845644,1772224280034,-13997.18,0.00048767,120]
[406845645,1772224280044,-13997.18,0.00048767,120]
[406845646,1772224280054,-13997.18,0.00048767,120]
[406845647,1772224280064,-13997.18,0.00048767,120]
[406845648,1772224280074,-13997.18,0.00048767,120]
[406845649,1772224280088,-13997.18,0.00048767,120]
[406845650,1772224280099,-13997.18,0.00048767,120]
[406845651,1772224280110,-13997.18,0.00048767,120]
[406845652,1772224280121,-13997.18,0.00048767,120]
[406845653,1772224280136,-13997.18,0.00048767,120]
[406845654,1772224280146,-13997.18,0.00048767,120]
[406845655,1772224280156,-13997.18,0.00048767,120]
[406845656,1772224280167,-13997.18,0.00048767,120]
[406845657,1772224280176,-13997.18,0.00048767,120]
[406845658,1772224280187,-13997.18,0.00048767,120]
[406845659,1772224280196,-13997.18,0.00048767,120]
[406845660,1772224280207,-13997.18,0.00048767,120]
[406845661,1772224280217,-13997.18,0.00048767,120]
[406845662,1772224280227,-13997.18,0.00048767,120]
[406845663,1772224280237,-13997.18,0.00048767,120]
[406845664,1772224280247,-13997.20972007,0.00048767,120]
[406845665,1772224280257,-4470.25,0.00048767,120]
[406845666,1772224280267,-4470.25,0.00048767,120]
[406845667,1772224280276,-4470.25,0.00048767,120]
[406845668,1772224280287,-4470.25,0.00048767,120]
[406845669,1772224280296,-4470.25,0.00048767,120]
[406845670,1772224280307,-4470.25,0.00048767,120]
[406845671,1772224280316,-4470.25,0.00048767,120]
[406845672,1772224280326,-4470.25,0.00048767,120]
[406845673,1772224280336,-4470.25,0.00048767,120]
[406845674,1772224280349,-4470.25,0.00048767,120]
[406845675,1772224280358,-4470.25,0.00048767,120]
[406845676,1772224280368,-4470.25,0.00048767,120]
[406845677,1772224280378,-4470.25,0.00048767,120]
[406845678,1772224280388,-4470.25,0.00048767,120]
[406845679,1772224280398,-4470.25,0.00048767,120]
[406845680,1772224280408,-4470.25,0.00048767,120]
[406845681,1772224280424,-4470.25,0.00048767,120]
[406845682,1772224280433,-4470.25,0.00048767,120]
[406845683,1772224280443,-4470.25,0.00048767,120]
[406845684,1772224280455,-4470.25,0.00048767,120]
[406845685,1772224280465,-4470.25,0.00048767,120]
[406845686,1772224280585,-4470.25,0.00048767,120]
[406845687,1772224280595,-4470.25,0.00048767,120]
[406845688,1772224280605,-4470.39731857,0.00048767,120]
[406845689,1772224280615,-1062.34374872,0.00048799,60]
[406845690,1772224280624,-5084407.15863472,0.000488,120]
[406845691,1772224280634,-700.0,0.000488,17]
[406845692,1772224280644,-1125.0,0.000489,17]
[406845693,1772224280654,-150.0,0.00048925,30]
[406845694,1772224280663,-150.0,0.00048925,30]
[406845695,1772224280673,-50000.0,0.00049,100]
[406845696,1772224280683,-10000.0,0.00049,120]
[406845697,1772224280692,-150.0,0.00049,120]
[406845698,1772224280701,-150.0,0.00049,120]
[406845699,1772224280711,-47353.25804739,0.00049,120]
[406845700,1772224280720,-849.15,0.00049,14]
[406845701,1772224280730,-155.0,0.000492,120]
[406845702,1772224280740,-150.0,0.00049293,30]
[406845703,1772224280750,-500.0,0.00049315,120]
[406845704,1772224280759,-500.0,0.00049315,120]
[406845705,1772224280769,-179.28,0.000494,120]
[406845706,1772224280779,-155.13,0.000494,120]
[406845707,1772224280789,-845.0,0.00049457,31]
[406845708,1772224280798,-502.5572369,0.000495,120]
[406845709,1772224280808,-1229.85,0.000495,90]
[406845710,1772224280818,-1229.85,0.000495,90]
[406845711,1772224280828,-63333.87069627,0.000495,120]
[406845712,1772224281036,-1858.03802112,7.671e-05,2]
[406845713,1772224281046,-189.759437,0.00041096,120]
[406845714,1772224281056,-189.759437,0.00041096,120]
[406845715,1772224281066,-189.759437,0.00041096,120]
[406845716,1772224281076,-189.759437,0.00041096,120]
[406845717,1772224281085,-444.831966,0.00043836,120]
[406845718,1772224281094,-444.831974,0.00043836,120]
[406845719,1772224281104,-8946.99363948,0.00046179,2]
[406845720,1772224281114,-1302546.26665144,0.000495,120]
[406845721,1772224281236,-11999.94003831,0.000495,120]
[406845722,1772224281251,-1858.03802112,0.00026875,2]
[406845723,1772224281261,-5082.42230671,0.000495,120]
[406845724,1772224575622,-300.0,6.538e-05,2]
[406845725,1772224575645,-1200.0,6.538e-05,2]
[406845726,1772224575668,-300.0,6.538e-05,2]
[406845727,1772224575691,-300.0,6.538e-05,2]
[406845728,1772224575715,-5000.0,6.538e-05,2]
[406845729,1772224575738,-250.0,6.539e-05,2]
[406845730,1772224575765,-150.0,6.539e-05,2]
[406845731,1772224575788,-5000.0,6.539e-05,2]
[406845732,1772224575811,-5000.0,6.539e-05,2]
[406845733,1772224575832,-900.22475202,6.539e-05,2]
[406845734,1772224575853,-599.33337056,6.539e-05,2]
[406845735,1772224575879,-500.0,6.539e-05,2]
[406845736,1772224575902,-580.71275536,6.539e-05,2]
[406845737,1772224575927,-500.0,6.539e-05,2]
[406845738,1772224575952,-500.0,6.539e-05,2]
[406845739,1772224575977,-500.0,6.539e-05,2]
[406845740,1772224576003,-500.0,6.539e-05,2]
[406845741,1772224576032,-530.74868635,6.539e-05,2]
[406845742,1772224576057,-133188.98043571,6.54e-05,2]
[406845743,1772224576295,264.92,6.5e-05,2]
[406845749,1772224749165,151.0,6.537e-05,2]
[406845750,1772224749632,151.0,6.537e-05,2]
[406845751,1772224816925,-150.0,6.539e-05,2]
[406845752,1772224816953,-207.0,6.539e-05,2]
[406845753,1772224816985,-336.74985404,6.539e-05,2]
[406845754,1772224848028,-250.0,6.67e-05,2]
[406845755,1772224987970,-250.0,7.19e-05,2]
[406845756,1772224987998,-1200.0,7.191e-05,2]
[406845758,1772225432100,-219.0,8.267e-05,2]
[406845759,1772225432110,-95.57995572,8.267e-05,2]
[406845760,1772225432121,-154.42004428,8.267e-05,2]
[406845761,1772225432130,-389.0,8.626e-05,2]
[406845762,1772225432139,-1200.0,8.672e-05,2]
[406845763,1772225432148,-142.3824272,8.673e-05,2]
[406845764,1772225432159,-324.01857318,8.673e-05,2]
[406845765,1772225432170,-33.59899962,8.673e-05,2]
[406845766,1772225432179,-500.0,8.673e-05,2]
[406845767,1772225432188,-87.53859136,8.673e-05,2]
[406845768,1772225432199,-412.46140864,8.673e-05,2]
[406845769,1772225432208,-251.49188993,8.673e-05,2]
[406845770,1772225432219,-248.50811007,8.673e-05,2]
[406845771,1772225432228,-500.0,8.673e-05,2]
[406845772,1772225432238,-500.0,8.673e-05,2]
[406845773,1772225432247,-250.0,8.698e-05,2]
[406845774,1772225432256,-723.95933803,8.699e-05,2]
[406845775,1772225432267,-1147.18000044,8.699e-05,2]
[406845776,1772225432278,-3128.86066153,8.699e-05,2]
[406845777,1772225432287,-250.0,8.699e-05,2]
[406845778,1772225432297,-169.531194,8.76e-05,2]
[406845779,1772225432306,-2500.0,9.021e-05,2]
[406845780,1772225432315,-245.61071948,9.075e-05,2]
[406845781,1772225432332,-150.0,9.095e-05,2]
[406845782,1772225432344,-150.99,9.096e-05,2]
[406845783,1772225432353,-9999.99,9.096e-05,2]
[406845784,1772225432362,-9999.99,9.096e-05,2]
[406845785,1772225432372,-299.99,9.096e-05,2]
[406845786,1772225432381,-658.73,9.096e-05,2]
[406845787,1772225432391,-500.0,9.12e-05,2]
[406845788,1772225432400,-419.53335939,9.12e-05,2]
[406845789,1772225432409,-178.84714072,9.12e-05,2]
[406845790,1772225432418,-9451.16617903,9.121e-05,2]
[406845791,1772225432431,-29070.84583087,9.121e-05,2]
[406845792,1772225432441,-817.79588592,9.121e-05,2]
[406845793,1772225432452,-7400.21217841,9.121e-05,2]
[406845794,1772225432465,-14318.98099954,9.121e-05,2]
[406845795,1772225432478,-9501.16846777,9.121e-05,2]
[406845796,1772225432493,-9805.73974299,9.121e-05,2]
[406845797,1772225432505,-3935.87063297,9.121e-05,2]
[406845798,1772225432516,-1321.58232096,9.121e-05,2]
[406845799,1772225432528,-3298.87374977,9.121e-05,2]
[406845800,1772225432541,-861.64940807,9.121e-05,2]
[406845801,1772225432552,-320.65660765,9.121e-05,2]
[406845802,1772225432563,-625.6194234,9.121e-05,2]
[406845803,1772225432574,-1969.14,9.121e-05,2]
[406845804,1772225432585,-924.05253866,9.121e-05,2]
[406845817,1772225438214,-1493.53,8.909e-05,2]
[406845818,1772225438223,-1906376.64603399,9.121e-05,2]
[406845819,1772225438237,-1000.0,9.221e-05,2]
[406845820,1772225438246,-1000.0,9.221e-05,2]
[406845821,1772225438256,-293.0,9.236e-05,2]
[406845822,1772225438265,-1680.0,9.539e-05,2]
[406845823,1772225438274,-1500000.0,9.57e-05,2]
[406845824,1772225438283,-619.34600704,9.668e-05,2]
[406845825,1772225438293,-6744.6228,9.668e-05,2]
[406845826,1772225438303,-9999.99,9.67e-05,2]
[406845827,1772225438313,-902.4,9.67e-05,2]
[406845828,1772225438323,-29999.99,9.67e-05,2]
[406845829,1772225438332,-1000.0,9.768e-05,2]
[406845830,1772225438342,-1000.0,9.768e-05,2]
[406845831,1772225438352,-151.0,0.0001,2]
[406845832,1772225438361,-151.0,0.0001,2]
[406845833,1772225438371,-151.0,0.0001,2]
[406845834,1772225438380,-151.0,0.0001,2]
[406845835,1772225438390,-151.0,0.0001,2]
[406845836,1772225438400,-151.0,0.0001,2]
[406845837,1772225438410,-151.0,0.0001,2]
[406845838,1772225438419,-151.0,0.0001,2]
[406845839,1772225438428,-151.0,0.0001,2]
[406845841,1772225438437,-151.0,0.0001,2]
[406845843,1772225438446,-151.0,0.0001,2]
[406845845,1772225438456,-151.0,0.0001,2]
[406845847,1772225438465,-151.0,0.0001,2]
[406845849,1772225438478,-151.0,0.0001,2]
[406845850,1772225438488,-151.0,0.0001,2]
[406845852,1772225438498,-151.0,0.0001,2]
[406845853,1772225438507,-151.0,0.0001,2]
[406845854,1772225438517,-151.0,0.0001,2]
[406845855,1772225438527,-151.0,0.0001,2]
[406845856,1772225438536,-151.0,0.0001,2]
[406845857,1772225438547,-500.0,0.0001,2]
[406845859,1772225438556,-255.0,0.00010005,2]
[406845861,1772225438565,-1493.53,0.00010023,2]
[406845863,1772225438575,-500.0,0.00010274,2]
[406845865,1772225438584,-500.0,0.000103,2]
[406845866,1772225438594,-721.64905814,0.000103,2]
[406845867,1772225438603,-500.0,0.000103,2]
[406845868,1772225438613,-500.0,0.000103,2]
[406845869,1772225438622,-500.0,0.000103,2]
[406845870,1772225438635,-500.0,0.000103,2]
[406845871,1772225438645,-500.0,0.000103,2]
[406845872,1772225438654,-903.45593082,0.000103,2]
[406845873,1772225438663,-500.0,0.000103,2]
[406845874,1772225438672,-579.04903497,0.000103,2]
[406845875,1772225438682,-500.0,0.000103,2]
[406845876,1772225438691,-500.0,0.000103,2]
[406845877,1772225438701,-727.90352404,0.000103,2]
[406845878,1772225438710,-500.0,0.000103,2]
[406845879,1772225438720,-500.0,0.000103,2]
[406845880,1772225438729,-500.0,0.000103,2]
[406845881,1772225438738,-500.0,0.000103,2]
[406845882,1772225438748,-500.0,0.000103,2]
[406845883,1772225438757,-500.0,0.000103,2]
[406845884,1772225438766,-500.0,0.000103,2]
[406845885,1772225438775,-500.0,0.000103,2]
[406845886,1772225438785,-500.0,0.000103,2]
[406845887,1772225438794,-994.08095704,0.000103,2]
[406845888,1772225438803,-500.0,0.000103,2]
[406845889,1772225438813,-732.55886118,0.000103,2]
[406845890,1772225438822,-795.55896205,0.000103,2]
[406845891,1772225438832,-500.0,0.000103,2]
[406845892,1772225438841,-888.46058708,0.000103,2]
[406845893,1772225438852,-869.50668288,0.000103,2]
[406845894,1772225438861,-699.99,0.000103,2]
[406845895,1772225438872,-500.0,0.000103,2]
[406845896,1772225438882,-500.0,0.000103,2]
[406845897,1772225438892,-500.0,0.000103,2]
[406845898,1772225438902,-500.0,0.000103,2]
[406845899,1772225438911,-800.0,0.000103,2]
[406845900,1772225438921,-736.56274826,0.000103,2]
[406845901,1772225438930,-728.53552626,0.000103,2]
[406845902,1772225438939,-500.0,0.000103,2]
[406845903,1772225438948,-500.0,0.000103,2]
[406845904,1772225438958,-744.54912065,0.000103,2]
[406845905,1772225438966,-977.54963407,0.000103,2]
[406845906,1772225438976,-500.0,0.000103,2]
[406845907,1772225438986,-500.0,0.000103,2]
[406845908,1772225438995,-500.0,0.000103,2]
[406845909,1772225439008,-900.0,0.000103,2]
[406845910,1772225439017,-2351.0,0.00010493,2]
[406845911,1772225439027,-500.0,0.00010548,2]
[406845912,1772225439036,-500.0,0.00010822,2]
[406845913,1772225439046,-1419.31227139,0.000109,2]
[406845914,1772225439055,-250.0,0.00010924,2]
[406845915,1772225439065,-166.66,0.00010959,2]
[406845916,1772225439074,-433.0,0.00011005,2]
[406845917,1772225439083,-166.66,0.00011068,2]
[406845918,1772225439092,-500.0,0.00011096,2]
[406845919,1772225439102,-1788.50822214,0.00011099,2]
[406845920,1772225439111,-1493.53,0.00011136,2]
[406845921,1772225439121,-166.66,0.00011178,2]
[406845922,1772225439130,-166.66,0.00011288,2]
[406845923,1772225439139,-427.46515504,0.0001137,2]
[406845924,1772225439148,-166.66,0.00011397,2]
[406845925,1772225439158,-166.66,0.00011507,2]
[406845926,1772225439168,-3292.0,0.00011542,2]
[406845927,1772225439177,-736.0,0.00012105,2]
[406845928,1772225439187,-1493.53,0.0001225,2]
[406845929,1772225439196,-4609.0,0.00012696,2]
[406845930,1772225439205,-500.0,0.0001289,2]
[406845931,1772225439215,-500.0,0.0001289,2]
[406845932,1772225439224,-500.0,0.0001289,2]
[406845933,1772225439233,-500.0,0.0001289,2]
[406845934,1772225439242,-500.0,0.0001289,2]
[406845935,1772225439252,-500.0,0.0001289,2]
[406845936,1772225439262,-500.0,0.0001289,2]
[406845937,1772225439271,-500.0,0.0001289,2]
[406845938,1772225439281,-500.0,0.0001289,2]
[406845939,1772225439290,-500.0,0.0001289,2]
[406845940,1772225439300,-500.0,0.0001289,2]
[406845941,1772225439309,-500.0,0.0001289,2]
[406845942,1772225439319,-500.0,0.0001289,2]
[406845943,1772225439329,-500.0,0.0001289,2]
[406845944,1772225439338,-500.0,0.0001289,2]
[406845945,1772225439349,-500.0,0.0001289,2]
[406845946,1772225439359,-500.0,0.0001289,2]
[406845947,1772225439368,-500.0,0.0001289,2]
[406845948,1772225439377,-500.0,0.0001289,2]
[406845949,1772225439390,-500.0,0.0001289,2]
[406845950,1772225439399,-500.0,0.0001289,2]